[Event "Stare Mesto Open-A 2022"]
[Site "Stare Mesto"]
[Date "2022.08.14"]
[Round "3.2"]
[White "Husek, Martin"]
[Black "Cerveny, Martin"]
[Result "1-0"]
[ECO "B96"]
[WhiteElo "2132"]
[BlackElo "2396"]
[Annotator "TA"]
[PlyCount "82"]
[EventDate "2022.08.12"]
[EventType "swiss"]
[EventCountry "CZE"]
[SourceTitle "playchess.com"]
[Source "ChessBase"]
[SourceQuality "1"]
[TimeControl "40/5400+30:1800+30"]

{[%evp 17,82,46,60,67,60,62,58,77,73,72,80,63,57,61,76,69,72,75,93,97,97,45,95,104,116,85,159,149,175,184,681,668,601,575,898,898,890,889,822,821,665,25,443,437,406,408,437,116,116,-86,1761,1711,6079,6079,29984,465,365,441,1061,1023,2178,2131,1872,1872,1591,1515,29999]} 1. e4 {[%emt 0:02:01]} c5 {[%emt 0:00:06]} 2. Nf3 {[%emt 0:01:03]} d6 {[%emt 0:00:10]} 3. d4 {[%emt 0:00:04]} cxd4 {[%emt 0:00:05]} 4. Nxd4 {[%emt 0:00:06]} Nf6 {[%emt 0:00:06]} 5. Nc3 {[%emt 0:00:06]} a6 {[%emt 0:00:06]} 6. Bg5 {[%emt 0:00:05]} e6 {[%emt 0:00:46]} 7. f4 {[%emt 0:01:46][%cal Bf2f4,Bf4f5][%mdl 32]} Qc7 {[%emt 0:01:39]} 8. Qf3 {[%emt 0:00:59] 8.Bxf6 is more fashionable.} b5 {[%emt 0:00:09]} 9. Bxf6 {[%emt 0:00:07]} gxf6 {[%emt 0:00:04]} 10. a3 {[%emt 0:00:08] B96: Sicilian Najdorf: 6 Bg5 e6 7 f4, lines other than 7...Qb6 and 7...Be7.} Bb7 {[%emt 0:02:13][%cal Of6f5]} 11. O-O-O {[%emt 0:00:18]} h5 {[%emt 0:00:09]} 12. f5 {[%emt 0:00:53] White is slightly better.} e5 {[%emt 0:00:40]} 13. Nb3 {[%emt 0:00:15]} Nd7 {[%emt 0:01:19]} 14. Be2 {[%emt 0:11:38]} Rc8 {[%emt 0:00:47][%cal Od6d5]} 15. Kb1 {[%emt 0:00:23]} h4 {[%emt 0:05:29]} 16. Rd3 {[%emt 0:02:01]} Nb6 {[%emt 0:21:43]} 17. Na5 {[%emt 0:11:12]} Ba8 {[%emt 0:02:22]} 18. Rhd1 {[%emt 0:00:37] [#]} Rg8 $146 {[%emt 0:03:27]} ({Predecessor:} 18... Rd8 19. Qf2 Na4 20. Nb3 Rc8 21. Bf3 Nb6 22. Na5 Be7 {1-0 (43) Nemec,J (2240)-Cerveny,M (2411) Pardubice 2021}) 19. R3d2 {[%emt 0:13:40]} (19. Nb3 $16) 19... Na4 {[%emt 0:10:57]} ({Black should try} 19... Rd8 $14) 20. Nxa4 $16 {[%emt 0:06:05][%cal Ob2b4]} Qxa5 {[%emt 0:00:44]} 21. Nc3 {[%emt 0:00:16]} Rxc3 {[%emt 0:00:55]} 22. bxc3 {[%emt 0:05:37]} (22. Qxc3 Qxc3 23. bxc3 Bxe4 $11) 22... Qxa3 {[%emt 0:00:25]} 23. Qe3 $1 {[%emt 0:01:00] Hoping for Qa7.} Qa5 $2 {[%emt 0:13:23]} (23... Be7 24. Bf3 (24. Qa7 Bxe4 25. Qb8+ Kd7 $11) 24... Bb7) 24. Qa7 $18 {[%emt 0:05:45] Strongly threatening Bh5.} Bxe4 {[%emt 0:06:20]} 25. Bh5 {[%emt 0:02:22]} (25. Bf3 Bxf3 26. gxf3 h3 27. Qa8+ Kd7 $18) 25... Be7 {[%emt 0:05:54]} 26. Rxd6 {[%emt 0:03:14] White threatens Qb8+ and mate.} Bxc2+ {[%emt 0:00:07]} 27. Kb2 {[%emt 0:02:35] White wants to mate with Qa8+.} (27. Kxc2 Qa2+ 28. Kd3 (28. Kc1 $2 Bxd6 29. Bxf7+ Qxf7 $19) 28... Qc4+ 29. Kd2 Kf8 $16) 27... Bxd1 {[%emt 0:02:16]} 28. Qa8+ {[%emt 0:04:16]} Bd8 {[%emt 0:00:18]} 29. Rxd1 $2 {[%emt 0:09:01]} (29. Qc6+ $1 $18 Kf8 30. Bxf7) 29... b4 $2 {[%emt 0:03:39][%mdl 8192]} (29... Qc7 $11) 30. Qc6+ $1 {[%emt 0:04:04]} (30. cxb4 Qxb4+ 31. Kc2 Qc5+ 32. Kb3 Ke7 $17) 30... Kf8 {[%emt 0:00:06] [#]} 31. Bxf7 $1 {[%emt 0:01:09][%mdl 512] Intending Qe8+ and mate. Really sharp!} Rh8 {[%emt 0:05:46]} (31... Kxf7 32. Rd7+ Be7 33. Qe6+ Kg7 34. Rxe7+ Kh6 35. Qxf6+ (35. Qxg8 bxc3+ 36. Kc2 Qa4+ 37. Kxc3 Qd4+ 38. Kc2 Qf2+ 39. Kd3 Qd4+ 40. Ke2 Qe4+ 41. Kf1 Qf4+ 42. Kg1 Qe3+ 43. Kf1 Qf4+ 44. Ke2 Qe4+ 45. Kf2 Qf4+ 46. Kg1 Qe3+ 47. Kf1 Qf4+ $11) 35... Kh5 36. Rh7+ Kg4 37. Rxh4#) (31... bxc3+ 32. Kc2) 32. Qd7 $2 $40 {[%emt 0:07:31][%mdl 128] White wants a kill.} (32. cxb4 $18 Qb6 33. Qd7 Qf2+ 34. Ka3) 32... Qa3+ $16 {[%emt 0:01:34]} 33. Kb1 $2 {[%emt 0:01:21] [#] White is much more active.} (33. Kc2 $16 {Black must now prevent Bb3.} Qxc3+ 34. Kb1) 33... b3 $1 {[%emt 0:03:24][%mdl 8192]} 34. Rd2 $18 {[%emt 0:02:44]} Be7 {[%emt 0:00:04]} 35. Bc4 {[%emt 0:01:40] Qe6 would kill now.} Kg7 {[%emt 0:05:12]} 36. Qe6 {[%emt 0:00:05]} (36. Qd5 $142 Rf8 37. Qf3 Rh8 38. Qg4+ Kf8 39. Qg6 Qc1+ 40. Kxc1 Ba3+ 41. Kd1 Rh7 42. Qxf6+ Ke8 43. Qd8#) 36... Rf8 {[%emt 0:00:05]} 37. Bxb3 {[%emt 0:00:16] And now Qc4 would win.} Kh6 {[%emt 0:00:21]} (37... Rb8 {leads to mate.} 38. Qf7+ Kh8 39. Qh5+ Kg7 40. Qg6+ Kh8 41. Qh6#) (37... a5 $142 38. Rd7 Kh6) 38. Qc4 {[%emt 0:01:09]} e4 {[%emt 0:01:02]} 39. Rb2 {[%emt 0:00:52]} ({Weaker is} 39. Ra2 Qc5 40. Qxe4 Qg1+ 41. Kc2 Qf2+ 42. Kc1 Re8 $16) 39... Rb8 {[%emt 0:04:25]} 40. Qf7 {[%emt 0:00:22][%csl Gf5][%cal Rf7g6]} Kg5 {[%emt 0:00:12]} 41. g3 {[%emt 0:30:28][%csl Gf5][%cal Rf7g6]} e3 {Weighted Error Value: White=0.73/Black=1.02} 1-0

[Event "Stare Mesto Open-A 2022"]
[Site "Stare Mesto"]
[Date "2022.08.14"]
[Round "3.3"]
[White "Babula, Vlastimil"]
[Black "Skalsky, Alexandr"]
[Result "1-0"]
[ECO "B06"]
[WhiteElo "2571"]
[BlackElo "2187"]
[Annotator "TA"]
[PlyCount "75"]
[EventDate "2022.08.12"]
[EventType "swiss"]
[EventCountry "CZE"]
[SourceTitle "playchess.com"]
[Source "ChessBase"]
[SourceQuality "1"]
[TimeControl "40/5400+30:1800+30"]

{[%evp 9,75,41,49,15,62,53,68,37,35,2,10,0,0,0,4,-47,15,-56,-45,-54,-54,-54,-55,-79,-89,-77,-29,-41,54,58,50,47,62,25,142,133,184,179,203,193,229,154,388,413,417,403,527,521,740,711,746,741,3006,2887,2717,2497,2032,1252,1225,1160,1206,922,5516,9808,29993,29994,29994,29984]} 1. e4 {[%emt 0:00:03]} g6 {[%emt 0:00:02]} 2. d4 {[%emt 0:00:10]} Bg7 {[%emt 0:00:02]} 3. Nc3 {[%emt 0:00:17]} d6 {[%emt 0:00:19]} 4. Be3 {[%emt 0:00:29]} a6 {[%emt 0:00:40]} 5. Qd2 {[%emt 0:01:21]} b5 {[%emt 0:00:29]} 6. h4 {[%emt 0:05:11][%cal Bh2h4,Bh4h5][%mdl 32] B06: Modern Defence.} h6 {[%emt 0:00:55]} (6... Nf6 $11) 7. f3 {[%emt 0:08:29]} Nd7 {[%emt 0:00:45]} 8. h5 {[%emt 0:10:25] And now hxg6 would win. White is more active. White is slightly better.} g5 $1 {[%emt 0:00:16]} 9. a4 {[%emt 0:01:15]} b4 {[%emt 0:00:06] [#]} 10. Nce2 $146 {[%emt 0:00:39]} ({Predecessor:} 10. Nd1 c5 11. c3 bxc3 12. bxc3 Ngf6 13. Ne2 Qa5 14. Ng3 Nb6 15. Bd3 Bd7 16. d5 {0-1 (68) Logdahl,H (2269)-Cramling,D (2321) Eskilstuna 2019}) 10... c5 {[%emt 0:07:52]} 11. Ng3 {[%emt 0:14:28]} Qc7 {[%emt 0:06:09]} 12. N1e2 {[%emt 0:05:16]} (12. c3 $11) 12... Bb7 {[%emt 0:09:46]} (12... e6 $15) 13. Kf2 {[%emt 0:02:04]} (13. Nf5 $11 Bf8 14. dxc5 dxc5 15. O-O-O) 13... e6 $15 {[%emt 0:02:24]} 14. c3 {[%emt 0:02:55]} bxc3 {[%emt 0:03:32]} 15. bxc3 {[%emt 0:00:37]} Ne7 {[%emt 0:01:33]} 16. f4 {[%emt 0:03:47]} gxf4 {[%emt 0:05:52]} 17. Nxf4 {[%emt 0:00:49]} Nf6 {[%emt 0:04:40]} ({Black should try} 17... Rg8 $17) 18. Rh4 $1 $11 {[%emt 0:01:53][%cal Bh1h4,Bh4g4,Bg4g5][%mdl 32]} e5 {[%emt 0:04:12]} (18... Rg8 $15) 19. dxe5 $14 {[%emt 0:05:12]} dxe5 {[%emt 0:00:02]} 20. Nd3 {[%emt 0:00:08]} Rd8 {[%emt 0:11:52]} 21. Qe2 {[%emt 0:03:19]} Nd7 {[%emt 0:03:56] [#]} (21... O-O $11 {remains equal.}) 22. Kg1 $1 $16 {[%emt 0:00:46]} Bf6 {[%emt 0:01:33]} (22... Bc8 $16) 23. Rg4 $18 {[%emt 0:01:39]} Bc8 {[%emt 0:03:28]} 24. Qf2 {[%emt 0:02:41]} Qc6 {[%emt 0:03:59]} 25. Be2 {[%emt 0:04:56] Hoping for Rf1.} Bg5 $2 {[%emt 0:07:39] This costs Black the game.} (25... Nb6 $16 26. Rf1 (26. Nxc5 Bxg4 27. Bxa6 Nxa4 $11) 26... Bxg4 27. Nxe5 Bxe5 28. Qxf7+ Kd7 29. Bxg4+ Kc7 30. Qxe7+ Nd7 31. Bxd7 Qd6 32. Qxd6+ Bxd6) 26. Bxg5 {[%emt 0:01:10]} hxg5 {[%emt 0:00:01]} 27. Rxg5 {[%emt 0:00:49]} f6 {[%emt 0:04:54] [#]} 28. Rf1 $1 {[%emt 0:01:38]} Rh7 {[%emt 0:05:27] [#]} (28... c4 29. Nb4) 29. Bg4 $1 {[%emt 0:02:42]} Qd6 {[%emt 0:08:41]} 30. Nf5 {[%emt 0:07:13]} Qxd3 {[%emt 0:03:48]} 31. Ng7+ {[%emt 0:01:53]} Rxg7 {[%emt 0:00:30]} 32. Rxg7 {[%emt 0:00:02] Threatening mate with h6.} Qd6 {[%emt 0:00:35]} 33. Bxd7+ {[%emt 0:01:29]} Kxd7 {[%emt 0:00:26]} 34. h6 {[%emt 0:00:55]} Rh8 {[%emt 0:00:31]} 35. Qh4 {[%emt 0:00:52] h7 is the strong threat.} Qd2 {[%emt 0:00:33]} 36. Rxf6 {[%emt 0:00:48][%cal Og7e7] Rxe7+! would kill now.} Kd8 {[%emt 0:00:29] [#]} 37. Rf8+ $3 {[%emt 0:00:35][%mdl 512]} Kc7 {[%emt 0:00:30]} 38. Rxe7+ {[%emt 0:00:19] Weighted Error Value: White=0.20 (precise) /Black=0.65} 1-0

[Event "Stare Mesto Open-A 2022"]
[Site "Stare Mesto"]
[Date "2022.08.14"]
[Round "3.4"]
[White "Lojek, Marek"]
[Black "Neuman, Petr"]
[Result "0-1"]
[ECO "B13"]
[WhiteElo "2142"]
[BlackElo "2378"]
[Annotator "TA"]
[PlyCount "102"]
[EventDate "2022.08.12"]
[EventType "swiss"]
[EventCountry "CZE"]
[SourceTitle "playchess.com"]
[Source "ChessBase"]
[SourceQuality "1"]
[TimeControl "40/5400+30:1800+30"]

{[%evp 12,102,-7,-21,31,28,39,26,66,63,74,10,31,0,0,-22,-5,-14,32,-2,0,0,0,0,0,-14,-24,-50,-51,-68,-77,-80,-84,-82,-81,-90,-87,-207,-89,-145,-142,-161,-52,-55,-43,-49,-56,-51,-56,-62,-56,-60,-61,-85,-29,-35,-32,-108,-106,-105,-105,-107,-111,-203,-135,-166,-151,-166,-166,-175,-166,-399,-366,-464,-443,-1841,-1608,-1653,-1671,-1644,-1248,-2291,-2287,-3049,-2207,-12818,-12796,-12816,-12807,-6382,-6347,-2193,-1652]} 1. e4 {[%emt 0:02:10]} c6 {[%emt 0:00:35][%cal Bc7c6,Bc6d5][%mdl 32]} 2. d4 {[%emt 0:00:30]} d5 {[%emt 0:00:05]} 3. exd5 {[%emt 0:00:37]} cxd5 {[%emt 0:00:05]} 4. c4 {[%emt 0:00:18]} Nf6 {[%emt 0:00:07]} 5. Nc3 {[%emt 0:00:23]} Be6 {[%emt 0:00:43]} 6. Nf3 {[%emt 0:02:38][%cal Bg1f3,Bf3e5,Be5c4,Bc4e3][%mdl 32]} dxc4 {[%emt 0:03:52]} 7. Ne5 {[%emt 0:02:26]} Nbd7 {[%emt 0:04:47] D21: Queen's Gambit Accepted: 3 Nf3 sidelines.} (7... Nc6 $11) 8. Nxc4 $14 {[%emt 0:08:10]} Nd5 {[%emt 0:08:39]} 9. Ne3 {[%emt 0:08:07] [#]} Nxc3 $146 {[%emt 0:12:40] White has an edge.} ({Don't do} 9... Qa5 10. Bd2 Nxe3 11. fxe3 $16) ({Predecessor:} 9... Qa5 10. Bd2 Nxe3 11. fxe3 g6 12. Qf3 Bg7 13. Bb5 O-O 14. O-O Rab8 15. Rad1 Nf6 {0-1 (47) Hala,B (2264)-Sedy,P (2175) Czech Republic 2010}) 10. bxc3 {[%emt 0:01:46]} Nf6 {[%emt 0:00:27] Against d5} 11. d5 {[%emt 0:11:06]} (11. Be2 $16) 11... Bd7 {[%emt 0:00:15]} 12. c4 {[%emt 0:01:54]} e5 {[%emt 0:01:16]} 13. Be2 {[%emt 0:01:39]} Bb4+ {[%emt 0:07:24]} 14. Bd2 {[%emt 0:00:49]} Qa5 {[%emt 0:00:22]} (14... Bc5 $11) 15. f3 {[%emt 0:10:53]} b6 {[%emt 0:04:45]} 16. Rb1 {[%emt 0:03:45]} Bxd2+ {[%emt 0:00:21]} 17. Qxd2 {[%emt 0:00:05]} Qc5 {[%emt 0:01:51]} 18. O-O {[%emt 0:03:52]} O-O {[%emt 0:00:06]} 19. Kh1 {[%emt 0:02:34]} Ne8 {[%emt 0:00:09]} 20. Ng4 {[%emt 0:10:04]} Bxg4 {[%emt 0:02:20]} 21. fxg4 {[%emt 0:00:07]} Nd6 {[%emt 0:00:07]} 22. Rbc1 {[%emt 0:01:26]} Rac8 {[%emt 0:02:13]} 23. Qe1 {[%emt 0:03:44]} Rc7 {[%emt 0:04:05] Black is more active.} 24. Rc3 {[%emt 0:04:44] [#]} (24. g5 $17) 24... Qa5 {[%emt 0:08:56]} (24... b5 $1 $19 {[%cal Rb5c4] is more deadly.} 25. Bd1 bxc4 26. Qxe5 Re8) 25. Bd3 {[%emt 0:03:18]} (25. Rh3 $142) 25... e4 $1 $17 {[%emt 0:01:06]} 26. Bb1 {[%emt 0:00:17]} Rxc4 {[%emt 0:10:51]} (26... g6 $19 {...Re8 is the strong threat.} 27. g5 Re8) 27. Rxc4 $15 {[%emt 0:00:10]} Qxe1 {[%emt 0:00:05]} 28. Rxe1 {[%emt 0:00:03]} Nxc4 {[%emt 0:00:06]} 29. Bxe4 $19 {[%emt 0:02:19][%mdl 4096] Endgame KRB-KRN} Nd6 {[%emt 0:00:06] Hoping for ...Re8.} 30. Bf3 {[%emt 0:02:41]} Rc8 {[%emt 0:00:14]} 31. Kg1 {[%emt 0:02:05]} Kf8 {[%emt 0:00:07] Prevents Re7.} 32. Re2 {[%emt 0:01:40] Inhibits Rc2.} f6 {[%emt 0:01:39]} (32... h6 $17) 33. Re6 {[%emt 0:03:06]} Nf7 {[%emt 0:00:57]} 34. d6 {[%emt 0:04:39] [#]} ({Only move:} 34. Kf2 $1 $15) 34... Re8 $1 $17 {[%emt 0:00:28]} 35. Rxe8+ {[%emt 0:00:03]} Kxe8 {[%emt 0:00:03] KB-KN} 36. Be4 {[%emt 0:01:16]} g6 {[%emt 0:00:05]} ({Reject} 36... Nxd6 $6 37. Bxh7 Kf7 38. Bc2 $11) 37. h4 {[%emt 0:00:49]} (37. Bc6+ $17 Kd8 38. Bd5 Nxd6 39. Kf2) 37... Nxd6 {[%emt 0:00:06]} 38. Bd3 {[%emt 0:00:02]} Ke7 {[%emt 0:00:11]} 39. Kf2 {[%emt 0:00:33]} Ke6 {[%emt 0:01:18]} 40. Kf3 {[%emt 0:01:33]} Ke5 {[%emt 0:00:20]} 41. g3 $2 {[%emt 0:02:22]} (41. h5) 41... b5 $19 {[%emt 0:00:40]} 42. h5 {[%emt 0:02:12]} gxh5 {[%emt 0:00:36] Black is clearly winning.} 43. Bxh7 {[%emt 0:01:27]} (43. gxh5 $142 h6 44. Bf1) 43... hxg4+ {[%emt 0:00:04]} 44. Kxg4 {[%emt 0:00:07]} a5 {[%emt 0:01:30][%cal Ba7a5,Ba5a4,Ba4a3][%mdl 32] Threatens to win with ...a4.} 45. Kf3 {[%emt 0:03:45]} a4 {[%emt 0:04:56] Strongly threatening ...Kd4.} 46. Ke2 {[%emt 0:02:58]} Kd4 {[%emt 0:01:31]} 47. g4 {[%emt 0:01:22]} b4 {[%emt 0:07:46]} 48. Bc2 {[%emt 0:01:58] Inhibits b3.} Ne4 {[%emt 0:02:10] ( -> ...a3)} 49. Kf3 {[%emt 0:00:59]} Nc5 {[%emt 0:09:52]} 50. Kf4 {[%emt 0:04:56]} a3 {[%emt 0:00:06] aiming for ...Kc3.} 51. Kf5 {[%emt 0:00:19]} Kc3 {[%emt 0:00:14] Weighted Error Value: White=0.80/Black=0.20 (precise)} 0-1

[Event "Stare Mesto Open-A 2022"]
[Site "Stare Mesto"]
[Date "2022.08.14"]
[Round "3.5"]
[White "Prazak, Daniel"]
[Black "Sramek, Vojtech"]
[Result "0-1"]
[ECO "B50"]
[WhiteElo "2113"]
[BlackElo "2249"]
[Annotator "TA"]
[PlyCount "100"]
[EventDate "2022.08.12"]
[EventType "swiss"]
[EventCountry "CZE"]
[SourceTitle "playchess.com"]
[Source "ChessBase"]
[SourceQuality "1"]
[TimeControl "40/5400+30:1800+30"]

{[%evp 21,100,35,30,31,39,24,54,43,47,18,27,11,36,29,38,41,40,0,0,0,17,16,15,15,16,11,13,0,0,0,13,12,19,18,27,0,0,0,0,0,0,0,0,0,0,-187,-189,-198,-172,-172,-172,-178,-190,-374,-368,-346,-326,-322,-300,-318,-323,-316,-293,-300,-249,-986,-1028,-942,-833,-1709,-1335,-6070,-6199,-5979,-5820,-4786,-1916,-29979,-29978,-29972,-29972]} 1. e4 {[%emt 0:00:03]} c5 {[%emt 0:02:35]} 2. Nf3 {[%emt 0:00:23]} d6 {[%emt 0:00:18]} 3. c4 {[%emt 0:01:18]} Nc6 {[%emt 0:00:57]} 4. d4 {[%emt 0:01:18]} cxd4 {[%emt 0:03:43]} 5. Nxd4 {[%emt 0:00:16]} g6 {[%emt 0:00:48]} 6. Nc3 {[%emt 0:02:53]} Bg7 {[%emt 0:00:15]} 7. Be3 {[%emt 0:00:29]} Nf6 {[%emt 0:00:07]} 8. Be2 {[%emt 0:01:27]} O-O {[%emt 0:00:09]} 9. O-O {[%emt 0:01:04]} Bd7 {[%emt 0:00:21]} 10. h3 {[%emt 0:06:27]} Nxd4 {[%emt 0:00:44]} 11. Bxd4 {[%emt 0:02:18]} Bc6 {[%emt 0:00:07]} 12. Qc2 {[%emt 0:02:39] B38: Sicilian: Maroczy Bind with 5...Bg7 and 7...0-0.} a5 {[%emt 0:02:31]} 13. Rad1 {[%emt 0:01:43]} a4 {[%emt 0:07:05]} 14. c5 {[%emt 0:07:29] [#] White is slightly better.} Re8 $146 {[%emt 0:13:59]} ({Predecessor:} 14... Qa5 15. cxd6 exd6 16. a3 Rfe8 17. Bf3 Rac8 18. Qd2 Qa8 19. Qf4 Re6 20. Nd5 Nd7 {½-½ (42) Anton Guijarro,D (2673)-Iturrizaga Bonelli,E (2607) chess24.com INT 2021}) 15. cxd6 {[%emt 0:18:08]} exd6 {[%emt 0:00:24][%cal Rf6e4]} 16. Bf3 {[%emt 0:01:00]} Rc8 {[%emt 0:14:51][%cal Oc6e4]} 17. Rfe1 {[%emt 0:06:17]} (17. Nxa4 Bxe4 18. Qd2 Bxf3 19. gxf3 Nh5 20. Bxg7 Nxg7 $15) 17... b5 {[%emt 0:08:13]} 18. a3 {[%emt 0:02:02]} Qc7 {[%emt 0:01:38]} 19. Bxf6 {[%emt 0:13:43]} Bxf6 {[%emt 0:00:09]} 20. Bg4 {[%emt 0:00:15]} Bxc3 {[%emt 0:13:47]} 21. Qxc3 {[%emt 0:01:40]} Bd7 {[%emt 0:00:25]} 22. Qxc7 {[%emt 0:14:06]} Rxc7 {[%emt 0:00:06]} 23. Bxd7 {[%emt 0:00:20]} ({Of course not} 23. Rxd6 Bxg4 24. hxg4 Rc2 $11) 23... Rxd7 $11 {[%emt 0:00:06][%mdl 4096] Endgame KRR-KRR} 24. Rd5 {[%emt 0:00:24]} Re5 {[%emt 0:05:38]} 25. Red1 {[%emt 0:01:55]} Rb7 {[%emt 0:01:27]} 26. f3 {[%emt 0:04:42]} Rxd5 {[%emt 0:05:14]} 27. Rxd5 {[%emt 0:00:07] KR-KR} Rb6 $1 {[%emt 0:00:03]} 28. Rd4 {[%emt 0:00:37]} Kf8 {[%emt 0:03:48]} 29. Rb4 {[%emt 0:00:17]} Ke7 {[%emt 0:00:10]} 30. b3 {[%emt 0:00:36]} axb3 {[%emt 0:03:03]} 31. a4 {[%emt 0:00:22]} d5 $1 {[%emt 0:03:16]} 32. exd5 {[%emt 0:01:08]} Kd6 {[%emt 0:00:11][%cal Ob5a4] [#] White must now prevent ...bxa4!} 33. a5 {[%emt 0:01:32] White is on the road to losing.} (33. axb5 $11 Kc5 34. Rxb3) 33... Rb8 $19 {[%emt 0:01:32]} 34. Kf2 {[%emt 0:03:11]} Kxd5 {[%emt 0:01:06]} 35. Ke2 {[%emt 0:01:47]} Kc5 {[%emt 0:00:21]} 36. Rxb3 {[%emt 0:00:20]} b4 {[%emt 0:01:17] [#] Prevents Rc3+. Strongly threatening ...Kc4.} 37. Kd2 $2 {[%emt 0:00:29]} (37. Kd1 {keeps fighting.}) 37... Ra8 {[%emt 0:01:54]} 38. Re3 {[%emt 0:00:36]} Rxa5 {[%emt 0:00:33]} 39. Re5+ {[%emt 0:00:24]} Kb6 {[%emt 0:00:09]} 40. Re7 {[%emt 0:00:20]} Ra7 {[%emt 0:01:40]} 41. Re4 {[%emt 0:30:43]} Kb5 {[%emt 0:30:52]} 42. Kc2 {[%emt 0:00:21]} Ka4 {[%emt 0:04:48] And now ...Ka3 would win.} 43. g4 $2 {[%emt 0:00:56]} (43. Re1 Rc7+ 44. Kb2) 43... Ka3 {[%emt 0:00:00]} 44. Kb1 {[%emt 0:00:00]} Rd7 {[%emt 0:00:00]} 45. Re1 {[%emt 0:00:00]} Rd3 {[%emt 0:00:00] Threatens to win with ...b3.} 46. Rf1 {[%emt 0:00:00]} g5 {[%emt 0:00:00] ...b3 is the strong threat.} 47. Kc2 {[%emt 0:00:00]} Rc3+ {[%emt 0:00:00]} 48. Kd2 {[%emt 0:00:00]} Ka2 {[%emt 0:00:00]} 49. f4 {[%emt 0:00:00]} Rxh3 {[%emt 0:00:00]} 50. fxg5 {[%emt 0:00:00]} b3 {[%emt 0:00:00] Weighted Error Value: White=0.71/Black=0.11 (very precise)} 0-1

[Event "Stare Mesto Open-A 2022"]
[Site "Stare Mesto"]
[Date "2022.08.14"]
[Round "3.6"]
[White "Mojzis, Jaroslav"]
[Black "Travnicek, Krystof Mikulas"]
[Result "1/2-1/2"]
[ECO "A04"]
[WhiteElo "2108"]
[BlackElo "2138"]
[Annotator "NA RC"]
[PlyCount "61"]
[EventDate "2022.08.12"]
[EventType "swiss"]
[EventCountry "CZE"]
[SourceTitle "playchess.com"]
[Source "ChessBase"]
[SourceQuality "1"]
[TimeControl "40/5400+30:1800+30"]

1. Nf3 {[%emt 0:05:12]} c5 {[%emt 0:00:27]} 2. g3 {[%emt 0:00:08]} g6 {[%emt 0:00:27]} 3. Bg2 {[%emt 0:00:15]} Bg7 {[%emt 0:00:36]} 4. d4 {[%emt 0:00:28]} cxd4 {[%emt 0:00:22]} 5. Nxd4 {[%emt 0:00:06]} Nc6 {[%emt 0:00:29]} 6. e3 {[%emt 0:00:13]} d5 {[%emt 0:01:58]} 7. O-O {[%emt 0:01:22]} Nf6 {[%emt 0:00:52]} 8. c4 {[%emt 0:02:00]} O-O {[%emt 0:01:35]} 9. cxd5 {[%emt 0:04:50]} Nxd5 {[%emt 0:00:41]} 10. Nxc6 {[%emt 0:10:15]} bxc6 {[%emt 0:00:11]} 11. Qa4 {[%emt 0:07:59]} Qb6 {[%emt 0:08:06]} 12. Na3 {[%emt 0:07:58]} Ba6 {[%emt 0:11:44]} 13. Rd1 {[%emt 0:02:49]} Rfd8 {[%emt 0:15:11]} 14. Bd2 {[%emt 0:05:20]} Be2 {[%emt 0:04:01]} 15. Ba5 {[%emt 0:13:27]} Qa6 {[%emt 0:06:10]} 16. Rd2 {[%emt 0:02:38]} Rab8 {[%emt 0:09:40]} 17. Rxe2 {[%emt 0:03:28]} Qxe2 {[%emt 0:02:48]} 18. Bxd8 {[%emt 0:00:11]} Rxd8 {[%emt 0:01:12]} 19. Nc4 {[%emt 0:03:03]} Nb6 {[%emt 0:09:10]} 20. Nxb6 {[%emt 0:01:11]} axb6 {[%emt 0:00:10]} 21. Qxc6 {[%emt 0:02:53]} Qxb2 {[%emt 0:01:09]} 22. Rc1 {[%emt 0:01:44]} Bf6 {[%emt 0:06:18]} 23. h4 {[%emt 0:02:49]} h5 {[%emt 0:00:52]} 24. Rc2 {[%emt 0:00:43]} Qb4 {[%emt 0:01:39]} 25. Qc7 {[%emt 0:01:42]} Qe1+ {[%emt 0:03:50]} 26. Kh2 {[%emt 0:00:51]} Rd2 {[%emt 0:00:40]} 27. Rxd2 {[%emt 0:02:13]} Qxd2 {[%emt 0:00:04]} 28. Kg1 {[%emt 0:00:16]} Qxa2 {[%emt 0:00:49]} 29. Qxb6 {[%emt 0:00:09]} Kg7 {[%emt 0:00:54]} 30. Qb7 {[%emt 0:01:58]} Qa1+ {[%emt 0:01:13]} 31. Bf1 {[%emt 0:00:40]} 1/2-1/2

[Event "Stare Mesto Open-A 2022"]
[Site "Stare Mesto"]
[Date "2022.08.14"]
[Round "3.7"]
[White "Zpevak, Pavel"]
[Black "Horvath, Tomas"]
[Result "1/2-1/2"]
[ECO "E10"]
[WhiteElo "2351"]
[BlackElo "2094"]
[Annotator "TA"]
[PlyCount "33"]
[EventDate "2022.08.12"]
[EventType "swiss"]
[EventCountry "CZE"]
[SourceTitle "playchess.com"]
[Source "ChessBase"]
[SourceQuality "1"]
[TimeControl "40/5400+30:1800+30"]

{[%evp 22,33,20,20,14,11,9,16,18,0,0,0,13,18]} 1. d4 {[%emt 0:00:03]} Nf6 {[%emt 0:02:36]} 2. c4 {[%emt 0:00:44]} e6 {[%emt 0:00:06]} 3. Nf3 {[%emt 0:00:38]} c5 {[%emt 0:01:23]} 4. e3 {[%emt 0:02:28]} d5 {[%emt 0:03:23]} 5. Nc3 {[%emt 0:00:47]} Nc6 {[%emt 0:02:26]} 6. a3 {[%emt 0:01:05]} a6 {[%emt 0:05:47]} 7. Be2 {[%emt 0:20:49]} Bd6 {[%emt 0:05:30]} 8. O-O {[%emt 0:08:49]} O-O {[%emt 0:01:54]} 9. dxc5 {[%emt 0:08:45]} Bxc5 {[%emt 0:03:30]} 10. b4 {[%emt 0:00:32]} Ba7 {[%emt 0:02:12]} 11. Qc2 {[%emt 0:07:19]} dxc4 {[%emt 0:05:47]} 12. Bxc4 {[%emt 0:01:04] The position is equal.} b5 {[%emt 0:01:05] D40: Queen's Gambit Declined: Semi-Tarrasch with 5 e3.} 13. Bd3 {[%emt 0:07:01]} Bb7 {[%emt 0:03:41]} 14. Bb2 {[%emt 0:07:51]} Rc8 {[%emt 0:04:31]} 15. Rad1 {[%emt 0:01:34][%cal Od3h7] [#] Bxh7+! is the strong threat.} Qe7 {[%emt 0:02:49]} 16. Qb1 {[%emt 0:01:04] [#]} h6 $146 {[%emt 0:06:14]} ({Predecessor:} 16... Bb8 17. Ne2 h6 18. Rd2 Rfd8 19. Rfd1 Ng4 20. Qa1 Rd5 21. e4 Rh5 22. Ng3 Bxg3 23. hxg3 e5 {1-0 (41) Yuferov,S (2395)-Amidzic,O (2370) Moscow 1991}) 17. Ne4 {[%emt 0:12:37] A rather calm draw.  Weighted Error Value: White=0.04 (flawless) /Black=0.03 (flawless)} 1/2-1/2